Workbook

Sheet Sheet1
A1: 玉溪市本级2025年第八批次就业见习拟补贴明细表
A3: 序号 | B3: 见习单位名称 | C3: 补贴 人数 （人） | D3: 补贴金额 （元） | E3: 人员明细 | J3: 备注
E4: 姓名 | F4: 申报月份 | G4: 补贴 月数 （个） | H4: 补贴 标准 （元） | I4: 补贴 金额 （元）
A5: 1 | B5: 云南太标数控机床有限公司 | C5: 10 | D5: =SUM(I5:I14) -> ￥27,000.00 | E5: 肖桐宇 | F5: 2025年6-8月 | G5: 3 | H5: 1500 | I5: =G5*H5 -> 4500 | K5: 2024-12-01 | L5: 2025-05-01
E6: 李稳平 | F6: 2025年6-8月 | G6: 3 | H6: 1500 | I6: 4500 | K6: 2024-12-01 | L6: 2025-05-01
E7: 周龙 | F7: 2025年6-8月 | G7: 3 | H7: 1500 | I7: 4500 | K7: 2024-12-01 | L7: 2025-05-01
E8: 白吕建 | F8: 2025年6-8月 | G8: 3 | H8: 1500 | I8: 4500 | K8: 2024-12-01 | L8: 2025-05-01
E9: 黄恭瑜 | F9: 2025-08-01 | G9: 1 | H9: 1500 | I9: 1500 | K9: 2025-03-01 | L9: 2025-04-01
E10: 李勋垚 | F10: 2025-08-01 | G10: 1 | H10: 1500 | I10: 1500 | K10: 2025-03-01 | L10: 2025-04-01
E11: 王银磊 | F11: 2025-08-01 | G11: 1 | H11: 1500 | I11: 1500
E12: 杨朝雄 | F12: 2025-08-01 | G12: 1 | H12: 1500 | I12: 1500
E13: 张海潇 | F13: 2025-08-01 | G13: 1 | H13: 1500 | I13: 1500 | K13: 2025-03-01 | L13: 2025-04-01
E14: 周靖 | F14: 2025-08-01 | G14: 1 | H14: 1500 | I14: 1500 | K14: 2025-03-01 | L14: 2025-04-01
A15: 2 | B15: 云南省玉溪恒立建安工程有限公司 | C15: 22 | D15: =SUM(I15:I36) -> ￥66,000.00 | E15: 李紫怡 | F15: 2025年7-8月 | G15: 2 | H15: 1500 | I15: 3000
E16: 张悦 | F16: 2025年7-8月 | G16: 2 | H16: 1500 | I16: 3000
E17: 李刀顺 | F17: 2025年7-8月 | G17: 2 | H17: 1500 | I17: 3000
E18: 董明秋 | F18: 2025年7-8月 | G18: 2 | H18: 1500 | I18: 3000
E19: 刘嘉森 | F19: 2025年7-8月 | G19: 2 | H19: 1500 | I19: 3000
E20: 钟旭 | F20: 2025年7-8月 | G20: 2 | H20: 1500 | I20: 3000
E21: 张宇帆 | F21: 2025年7-8月 | G21: 2 | H21: 1500 | I21: =G21*H21 -> 3000
E22: 姜姝西 | F22: 2025年7-8月 | G22: 2 | H22: 1500 | I22: 3000
E23: 韩璐霞 | F23: 2025年7-8月 | G23: 2 | H23: 1500 | I23: 3000
E24: 普健伟 | F24: 2025年7-8月 | G24: 2 | H24: 1500 | I24: 3000
E25: 李林骏 | F25: 2025年7-8月 | G25: 2 | H25: 1500 | I25: 3000
E26: 陈怡朱 | F26: 2025年7-8月 | G26: 2 | H26: 1500 | I26: 3000
E27: 王晓艳 | F27: 2025年7-8月 | G27: 2 | H27: 1500 | I27: 3000
E28: 万子杰 | F28: 2025年7-8月 | G28: 2 | H28: 1500 | I28: 3000
E29: 朱跃文 | F29: 2025年7-8月 | G29: 2 | H29: 1500 | I29: 3000
E30: 潘千敏 | F30: 2025年7-8月 | G30: 2 | H30: 1500 | I30: 3000
E31: 李骆成 | F31: 2025年7-8月 | G31: 2 | H31: 1500 | I31: 3000
E32: 拔建伟 | F32: 2025年7-8月 | G32: 2 | H32: 1500 | I32: 3000
E33: 黄柏雯 | F33: 2025年7-8月 | G33: 2 | H33: 1500 | I33: 3000
E34: 汪增有 | F34: 2025年7-8月 | G34: 2 | H34: 1500 | I34: 3000
E35: 飞菲 | F35: 2025年7-8月 | G35: 2 | H35: 1500 | I35: 3000
E36: 陈浩 | F36: 2025年7-8月 | G36: 2 | H36: 1500 | I36: 3000
A37: 3 | B37: 中国共产党玉溪市委员会党校 | C37: 10 | D37: =SUM(I37:I46) -> ￥24,000.00 | E37: 杨兆丽 | F37: 2025年7-8月 | G37: 2 | H37: 1500 | I37: =G37*H37 -> 3000
E38: 毛海同 | F38: 2025年7-8月 | G38: 2 | H38: 1500 | I38: 3000
E39: 朱梓文 | F39: 2025年7-8月 | G39: 2 | H39: 1500 | I39: 3000
E40: 李玥 | F40: 2025年7-8月 | G40: 2 | H40: 1500 | I40: 3000
E41: 杞进宇 | F41: 2025年7-8月 | G41: 2 | H41: 1500 | I41: 3000
E42: 蔡晨 | F42: 2025年7-8月 | G42: 2 | H42: 1500 | I42: 3000
E43: 瞿瑞 | F43: 2025-08-02 | G43: 1 | H43: 1500 | I43: 1500
E44: 陶灿冰 | F44: 2025-08-03 | G44: 1 | H44: 1500 | I44: 1500
E45: 代俊源 | F45: 2025-08-04 | G45: 1 | H45: 1500 | I45: 1500
E46: 吴婧 | F46: 2025-08-05 | G46: 1 | H46: 1500 | I46: 1500
A47: 4 | B47: 玉溪市中山医院 | C47: 73 | D47: =SUM(I47:I119) -> ￥217,500.00 | E47: 范红仙 | F47: 2025年8-9月 | G47: 2 | H47: 1500 | I47: =G47*H47 -> 3000
E48: 周妮 | F48: 2025年8-9月 | G48: 2 | H48: 1500 | I48: 3000
E49: 余学萍 | F49: 2025年8-9月 | G49: 2 | H49: 1500 | I49: 3000
E50: 张璇 | F50: 2025年8-9月 | G50: 2 | H50: 1500 | I50: 3000
E51: 肖雄 | F51: 2025年8-9月 | G51: 2 | H51: 1500 | I51: 3000
E52: 赵加能 | F52: 2025年8-9月 | G52: 2 | H52: 1500 | I52: 3000
E53: 把香怡 | F53: 2025年8-9月 | G53: 2 | H53: 1500 | I53: 3000
E54: 李春燕 | F54: 2025年8-9月 | G54: 2 | H54: 1500 | I54: =G54*H54 -> 3000
E55: 普彬彬 | F55: 2025年8-9月 | G55: 2 | H55: 1500 | I55: 3000
E56: 张月 | F56: 2025年8-9月 | G56: 2 | H56: 1500 | I56: 3000
E57: 李生巧 | F57: 2025年8-9月 | G57: 2 | H57: 1500 | I57: 3000
E58: 太雪任 | F58: 2025年8-9月 | G58: 2 | H58: 1500 | I58: 3000
E59: 孙琪琳 | F59: 2025年8-9月 | G59: 2 | H59: 1500 | I59: 3000
E60: 蒋然 | F60: 2025年8-9月 | G60: 2 | H60: 1500 | I60: 3000
E61: 杨雨青 | F61: 2025年8-9月 | G61: 2 | H61: 1500 | I61: 3000
E62: 吕思怡 | F62: 2025年8-9月 | G62: 2 | H62: 1500 | I62: 3000
E63: 杨美彦 | F63: 2025年8-9月 | G63: 2 | H63: 1500 | I63: 3000
E64: 黄思豪 | F64: 2025年8-9月 | G64: 2 | H64: 1500 | I64: 3000
E65: 吴艳 | F65: 2025年8-9月 | G65: 2 | H65: 1500 | I65: 3000
E66: 朱媛 | F66: 2025年8-9月 | G66: 2 | H66: 1500 | I66: 3000
E67: 曹文珍 | F67: 2025年8-9月 | G67: 2 | H67: 1500 | I67: 3000
E68: 曾泽伟 | F68: 2025年8-9月 | G68: 2 | H68: 1500 | I68: 3000
E69: 储艺 | F69: 2025年8-9月 | G69: 2 | H69: 1500 | I69: 3000
E70: 汤紫娟 | F70: 2025年8-9月 | G70: 2 | H70: 1500 | I70: 3000
E71: 莫宇轩 | F71: 2025年8-9月 | G71: 2 | H71: 1500 | I71: 3000
E72: 车国伟 | F72: 2025年8-9月 | G72: 2 | H72: 1500 | I72: 3000
E73: 张燕 | F73: 2025年8-9月 | G73: 2 | H73: 1500 | I73: 3000
E74: 董思燕 | F74: 2025年8-9月 | G74: 2 | H74: 1500 | I74: 3000
E75: 施瑞鹏 | F75: 2025年8-9月 | G75: 2 | H75: 1500 | I75: 3000
E76: 杨秋月 | F76: 2025年8-9月 | G76: 2 | H76: 1500 | I76: 3000
E77: 雷紫杨 | F77: 2025年8-9月 | G77: 2 | H77: 1500 | I77: 3000
E78: 罗福梅 | F78: 2025年8-9月 | G78: 2 | H78: 1500 | I78: 3000
E79: 丁云虹 | F79: 2025年8-9月 | G79: 2 | H79: 1500 | I79: =G79*H79 -> 3000
E80: 杨星宇 | F80: 2025年8-9月 | G80: 2 | H80: 1500 | I80: 3000
E81: 朱科燃 | F81: 2025年8-9月 | G81: 2 | H81: 1500 | I81: 3000
E82: 李梦雪 | F82: 2025年8-9月 | G82: 2 | H82: 1500 | I82: 3000
E83: 钱楷燕 | F83: 2025年8-9月 | G83: 2 | H83: 1500 | I83: 3000
E84: 刘玉娟 | F84: 2025年8-9月 | G84: 2 | H84: 1500 | I84: 3000
E85: 卑振宇 | F85: 2025年8-9月 | G85: 2 | H85: 1500 | I85: 3000
E86: 刘然 | F86: 2025年8-9月 | G86: 2 | H86: 1500 | I86: 3000
E87: 徐孝娟 | F87: 2025年8-9月 | G87: 2 | H87: 1500 | I87: 3000
E88: 李旺 | F88: 2025年8-9月 | G88: 2 | H88: 1500 | I88: 3000
E89: 赵宇芮 | F89: 2025年8-9月 | G89: 2 | H89: 1500 | I89: 3000
E90: 刀忆 | F90: 2025年8-9月 | G90: 2 | H90: 1500 | I90: 3000
E91: 赵亚莲 | F91: 2025年8-9月 | G91: 2 | H91: 1500 | I91: 3000
E92: 杨呈强 | F92: 2025年8-9月 | G92: 2 | H92: 1500 | I92: 3000
E93: 李颖玉 | F93: 2025年8-9月 | G93: 2 | H93: 1500 | I93: 3000
E94: 罗梅 | F94: 2025年8-9月 | G94: 2 | H94: 1500 | I94: 3000
E95: 张瑜 | F95: 2025年8-9月 | G95: 2 | H95: 1500 | I95: 3000
E96: 刘可昕 | F96: 2025年8-9月 | G96: 2 | H96: 1500 | I96: 3000
E97: 赵桂林 | F97: 2025年8-9月 | G97: 2 | H97: 1500 | I97: 3000
E98: 田靳怡 | F98: 2025年8-9月 | G98: 2 | H98: 1500 | I98: 3000
E99: 李栖 | F99: 2025年8-9月 | G99: 2 | H99: 1500 | I99: 3000
E100: 普品燕 | F100: 2025年8-9月 | G100: 2 | H100: 1500 | I100: 3000
E101: 杨娇容 | F101: 2025年8-9月 | G101: 2 | H101: 1500 | I101: 3000
E102: 李昕 | F102: 2025年8-9月 | G102: 2 | H102: 1500 | I102: 3000
E103: 杨升 | F103: 2025年8-9月 | G103: 2 | H103: 1500 | I103: 3000
E104: 段颖 | F104: 2025年8-9月 | G104: 2 | H104: 1500 | I104: 3000
E105: 尹秋怡 | F105: 2025年8-9月 | G105: 2 | H105: 1500 | I105: =G105*H105 -> 3000
E106: 张萌 | F106: 2025年8-9月 | G106: 2 | H106: 1500 | I106: 3000
E107: 杨瀚宇 | F107: 2025年8-9月 | G107: 2 | H107: 1500 | I107: 3000
E108: 余世康 | F108: 2025年8-9月 | G108: 2 | H108: 1500 | I108: 3000
E109: 杨娜 | F109: 2025年8-9月 | G109: 2 | H109: 1500 | I109: 3000
E110: 曹欣阳 | F110: 2025年8-9月 | G110: 2 | H110: 1500 | I110: 3000
E111: 李晨雨 | F111: 2025年8-9月 | G111: 2 | H111: 1500 | I111: 3000
E112: 李爽 | F112: 2025-08-01 | G112: 1 | H112: 1500 | I112: 1500
E113: 施竹 | F113: 2025年8-9月 | G113: 2 | H113: 1500 | I113: 3000
E114: 王思琪 | F114: 2025年8-9月 | G114: 2 | H114: 1500 | I114: 3000
E115: 唐鹤杨 | F115: 2025年8-9月 | G115: 2 | H115: 1500 | I115: 3000
E116: 鲁巧燕 | F116: 2025年8-9月 | G116: 2 | H116: 1500 | I116: 3000
E117: 张霞 | F117: 2025年8-9月 | G117: 2 | H117: 1500 | I117: 3000
E118: 李映澄 | F118: 2025年8-9月 | G118: 2 | H118: 1500 | I118: 3000
E119: 尹一力 | F119: 2025年8-9月 | G119: 2 | H119: 1500 | I119: 3000
A120: 5 | B120: 玉溪市人民医院 | C120: 34 | D120: =SUM(I120:I153) -> ￥99,000.00 | E120: 胡玉洁 | F120: 2025年6-7月 | G120: 2 | H120: 1500 | I120: =G120*H120 -> 3000
E121: 吴年瑞 | F121: 2025年6-7月 | G121: 1 | H121: 1500 | I121: 1500
E122: 张睿 | F122: 2025年6-7月 | G122: 2 | H122: 1500 | I122: 3000
E123: 王婷婷 | F123: 2025年6-7月 | G123: 2 | H123: 1500 | I123: 3000
E124: 刘光意 | F124: 2025年6-7月 | G124: 2 | H124: 1500 | I124: 3000
E125: 刘静 | F125: 2025年6-7月 | G125: 2 | H125: 1500 | I125: 3000
E126: 赵庆尧 | F126: 2025年6-7月 | G126: 2 | H126: 1500 | I126: =G126*H126 -> 3000
E127: 韩艳 | F127: 2025年6-7月 | G127: 2 | H127: 1500 | I127: 3000
E128: 王子若 | F128: 2025年6-7月 | G128: 2 | H128: 1500 | I128: 3000
E129: 李忠涛 | F129: 2025年6-7月 | G129: 2 | H129: 1500 | I129: 3000
E130: 李艳 | F130: 2025-06-01 | G130: 1 | H130: 1500 | I130: 1500
E131: 唐蕊 | F131: 2025年6-7月 | G131: 2 | H131: 1500 | I131: 3000
E132: 赵世新 | F132: 2025年6-7月 | G132: 2 | H132: 1500 | I132: 3000
E133: 李应存 | F133: 2025年6-7月 | G133: 2 | H133: 1500 | I133: 3000
E134: 戴菲 | F134: 2025年6-7月 | G134: 2 | H134: 1500 | I134: 3000
E135: 李沂嘉 | F135: 2025年6-7月 | G135: 2 | H135: 1500 | I135: 3000
E136: 张皇 | F136: 2025年6-7月 | G136: 2 | H136: 1500 | I136: 3000
E137: 单蕊 | F137: 2025年6-7月 | G137: 2 | H137: 1500 | I137: 3000
E138: 向飞容 | F138: 2025年6-7月 | G138: 2 | H138: 1500 | I138: 3000
E139: 姚迅 | F139: 2025年6-7月 | G139: 2 | H139: 1500 | I139: 3000
E140: 王泽 | F140: 2025年6-7月 | G140: 2 | H140: 1500 | I140: 3000
E141: 宋曦遥 | F141: 2025年6-7月 | G141: 2 | H141: 1500 | I141: 3000
E142: 鲍钇羲 | F142: 2025年6-7月 | G142: 2 | H142: 1500 | I142: 3000
E143: 金亚银 | F143: 2025年6-7月 | G143: 2 | H143: 1500 | I143: 3000
E144: 钱晓鑫 | F144: 2025年7-8月 | G144: 2 | H144: 1500 | I144: 3000
E145: 史一言 | F145: 2025年7-8月 | G145: 2 | H145: 1500 | I145: 3000
E146: 赵雯媛 | F146: 2025年7-8月 | G146: 2 | H146: 1500 | I146: 3000
E147: 石润茜 | F147: 2025年7-8月 | G147: 2 | H147: 1500 | I147: 3000
E148: 张俊媛 | F148: 2025年7-8月 | G148: 2 | H148: 1500 | I148: 3000
E149: 熊大榕 | F149: 2025年7-8月 | G149: 2 | H149: 1500 | I149: 3000
E150: 朱琴 | F150: 2025年7-8月 | G150: 2 | H150: 1500 | I150: 3000
E151: 张馨悦 | F151: 2025年7-8月 | G151: 2 | H151: 1500 | I151: 3000
E152: 李昕恬 | F152: 2025年7-8月 | G152: 2 | H152: 1500 | I152: 3000
E153: 何瑾逸窈 | F153: 2025年7-8月 | G153: 2 | H153: 1500 | I153: 3000
A154: 6 | B154: 玉溪市中医医院 | C154: 18 | D154: =SUM(I154:I171) -> ￥27,000.00 | E154: 郭玲 | F154: 2025-07-01 | G154: 1 | H154: 1500 | I154: =G154*H154 -> 1500
E155: 童艳洋 | F155: 2025-07-01 | G155: 1 | H155: 1500 | I155: 1500
E156: 豆琋 | F156: 2025-07-01 | G156: 1 | H156: 1500 | I156: 1500
E157: 陈镜佳 | F157: 2025-07-01 | G157: 1 | H157: 1500 | I157: 1500
E158: 王梓冰 | F158: 2025-07-01 | G158: 1 | H158: 1500 | I158: 1500
E159: 申雯婷 | F159: 2025-07-01 | G159: 1 | H159: 1500 | I159: 1500
E160: 吴莲芳 | F160: 2025-07-01 | G160: 1 | H160: 1500 | I160: 1500
E161: 闻育敏 | F161: 2025-07-01 | G161: 1 | H161: 1500 | I161: 1500
E162: 普建梅 | F162: 2025-07-01 | G162: 1 | H162: 1500 | I162: 1500
E163: 郭思琪 | F163: 2025-07-01 | G163: 1 | H163: 1500 | I163: 1500
E164: 陈梦媛 | F164: 2025-07-01 | G164: 1 | H164: 1500 | I164: 1500
E165: 吉蓉 | F165: 2025-07-01 | G165: 1 | H165: 1500 | I165: 1500
E166: 马若妤 | F166: 2025-07-01 | G166: 1 | H166: 1500 | I166: =G166*H166 -> 1500
E167: 王璟 | F167: 2025-07-01 | G167: 1 | H167: 1500 | I167: 1500
E168: 周媛 | F168: 2025-07-01 | G168: 1 | H168: 1500 | I168: 1500
E169: 张婉娟 | F169: 2025-07-01 | G169: 1 | H169: 1500 | I169: 1500
E170: 黄智琳 | F170: 2025-07-01 | G170: 1 | H170: 1500 | I170: 1500
E171: 郑金花 | F171: 2025-07-01 | G171: 1 | H171: 1500 | I171: 1500
A172: 7 | B172: 云南玉溪中汇电力设备有限责任公司 | C172: 18 | D172: =SUM(I172:I189) -> ￥87,000.00 | E172: 秀民兴 | F172: 2025年4-7月 | G172: 4 | H172: 1500 | I172: 6000
E173: 周世富 | F173: 2025年4-7月 | G173: 4 | H173: 1500 | I173: 6000
E174: 罗子龙 | F174: 2025-04-01 | G174: 1 | H174: 1500 | I174: 1500
E175: 李晨媛 | F175: 2025年4-7月 | G175: 4 | H175: 1500 | I175: 6000
E176: 王诗然 | F176: 2025年4-7月 | G176: 4 | H176: 1500 | I176: 6000
E177: 刘红明 | F177: 2025年4-7月 | G177: 4 | H177: 1500 | I177: 6000
E178: 张耀 | F178: 2025年4-7月 | G178: 4 | H178: 1500 | I178: 6000
E179: 普晋 | F179: 2025年4-7月 | G179: 4 | H179: 1500 | I179: 6000
E180: 白子璇 | F180: 2025年4-7月 | G180: 4 | H180: 1500 | I180: 6000
E181: 杨小钰 | F181: 2025年4-7月 | G181: 4 | H181: 1500 | I181: 6000
E182: 张呈册 | F182: 2025年4-5月 | G182: 2 | H182: 1500 | I182: 3000
E183: 王淞悦 | F183: 2025年4-7月 | G183: 4 | H183: 1500 | I183: 6000
E184: 赵振翔 | F184: 2025-04-01 | G184: 1 | H184: 1500 | I184: 1500
E185: 段文杰 | F185: 2025年5-7月 | G185: 3 | H185: 1500 | I185: =G185*H185 -> 4500
E186: 蒋明川 | F186: 2025年5-6月 | G186: 2 | H186: 1500 | I186: 3000
E187: 李俊蓉 | F187: 2025年5-7月 | G187: 3 | H187: 1500 | I187: 4500
E188: 普智杰 | F188: 2025年5-7月 | G188: 3 | H188: 1500 | I188: 4500
E189: 张杨俊雄 | F189: 2025年5-7月 | G189: 3 | H189: 1500 | I189: 4500
A190: 8 | B190: 云南玉溪交通运输集团有限公司 | C190: 3 | D190: =SUM(I190:I192) -> ￥10,500.00 | E190: 张思楠 | F190: 2025年6-8月 | G190: 3 | H190: 1500 | I190: 4500
E191: 孔祥智 | F191: 2025年6-8月 | G191: 3 | H191: 1500 | I191: 4500
E192: 唐小晏 | F192: 2025-06-01 | G192: 1 | H192: 1500 | I192: =G192*H192 -> 1500
A193: 9 | B193: 云南猫哆哩集团食品有限责任公司 | C193: 9 | D193: =SUM(I193:I201) -> ￥34,500.00 | E193: 马荣海 | F193: 2025年6-8月 | G193: 3 | H193: 1500 | I193: 4500
E194: 肖敏 | F194: 2025年6-2026年2月 | G194: 9 | H194: 1500 | I194: 13500 | J194: 留用
E195: 尹欣妍 | F195: 2025年6-8月 | G195: 3 | H195: 1500 | I195: 4500
E196: 张发秀 | F196: 2025年7-8月 | G196: 2 | H196: 1500 | I196: 3000
E197: 李将 | F197: 2025年7-8月 | G197: 2 | H197: 1500 | I197: 3000
E198: 杨芷 | F198: 2025-08-01 | G198: 1 | H198: 1500 | I198: 1500
E199: 段家元 | F199: 2025-08-02 | G199: 1 | H199: 1500 | I199: 1500
E200: 田伟 | F200: 2025-08-03 | G200: 1 | H200: 1500 | I200: 1500
E201: 曾意胜 | F201: 2025-08-04 | G201: 1 | H201: 1500 | I201: 1500
... 153 more rows
